bitfinex/quotes_SOLUSD_20230116
["timestamp","ask_amount","ask_price","bid_price","bid_amount"]
[1673852709343,20.0,24.829,24.781,2.64676]
[1673852709763,28.47610075,24.828,24.781,2.64676]
[1673852709968,20.0,24.829,24.79,18.17]
[1673852710181,20.0,24.829,24.791,2.64569]
[1673852710798,20.0,24.829,24.8,18.17]
[1673852711021,20.0,24.844,24.81,18.17]
[1673852711230,20.0,24.844,24.811,20.0]
[1673852711651,18.04,24.84,24.801,2.64462]
[1673852711861,18.04,24.84,24.79,18.17]
[1673852712066,48.47610075,24.839,24.791,2.64569]
[1673852712697,20.0,24.829,24.78,18.03]
[1673852713120,30.00855408,24.828,24.78,18.03]
[1673852713317,19.79912,24.827,24.781,2.64676]
[1673852713546,19.59824,24.827,24.781,2.64676]
[1673852713866,20.0,24.825,24.781,2.64676]
[1673852714287,18.17,24.81,24.765,105.4806616]
[1673852714478,18.17,24.79,24.765,105.2752716]
[1673852714689,18.17,24.79,24.765,105.0698816]
[1673852714914,20.0,24.799,24.765,105.0698816]
[1673852714915,18.13,24.8,24.765,104.8644916]
[1673852715124,18.3,24.82,24.766,2.44297]
[1673852715442,20.0,24.819,24.771,20.0]
[1673852715661,20.0,24.818,24.772,2.44233]
[1673852715879,20.0,24.818,24.772,2.23694]
[1673852716182,20.0,24.818,24.78,18.17]
[1673852716510,20.0,24.818,24.781,20.0]
[1673852716711,20.0,24.818,24.782,20.0]
[1673852716924,20.0,24.818,24.765,104.6591016]
[1673852716925,18.04,24.81,24.765,104.6591016]
[1673852717455,18.04,24.81,24.766,2.64836]
[1673852717651,18.17,24.8,24.765,104.6591016]
[1673852717865,28.43997115,24.809,24.765,104.6591016]
[1673852718081,28.43997115,24.809,24.765,107.3075716]
[1673852718273,18.17,24.78,24.765,107.3075716]
[1673852718487,18.17,24.79,24.765,104.6591016]
[1673852719236,18.04,24.79,24.765,104.6591016]
[1673852719548,46.39474264,24.789,24.765,104.6591016]
[1673852719747,20.0,24.799,24.765,104.6591016]
[1673852720162,18.04,24.81,24.766,20.0]
[1673852720379,18.12,24.84,24.79,18.09]
[1673852720896,18.12,24.84,24.791,41.46196354]
[1673852721106,18.12,24.84,24.791,20.0]
[1673852721319,18.12,24.84,24.785,21.46196354]
[1673852721539,18.17,24.82,24.785,21.46196354]
[1673852721759,18.17,24.82,24.771,20.0]
[1673852721951,18.17,24.82,24.77,18.17]
[1673852721952,18.17,24.82,24.772,2.64772]
[1673852722168,18.17,24.81,24.772,2.64772]
[1673852722493,18.17,24.81,24.76,18.04]
[1673852722701,20.0,24.809,24.766,20.0]
[1673852722910,20.0,24.809,24.767,2.64825]
[1673852723524,20.0,24.809,24.771,20.0]
[1673852724047,20.0,24.809,24.76,18.04]
[1673852724257,18.17,24.8,24.75,18.0]
[1673852724806,18.17,24.8,24.758,40.82]
[1673852725003,20.0,24.809,24.766,2.64836]
[1673852725324,18.17,24.79,24.765,104.6591016]
[1673852727118,18.04,24.78,24.765,104.6591016]
[1673852728605,49.86013907,24.779,24.765,104.6591016]
[1673852728794,20.0,24.779,24.765,104.6591016]
[1673852729426,29.86013907,24.778,24.765,104.6591016]
[1673852729864,20.0,24.779,24.765,104.6591016]
[1673852730055,18.12,24.78,24.765,104.6591016]
[1673852730056,26.87087574,24.778,24.765,104.6591016]
[1673852730393,18.12,24.78,24.765,104.6591016]
[1673852731122,18.12,24.78,24.765,62.14134157]
[1673852731524,18.17,24.79,24.765,62.14134157]
[1673852731734,17.96816,24.79,24.765,62.14134157]
[1673852731955,17.96816,24.78,24.765,62.14134157]
[1673852732173,17.92816,24.78,24.765,62.14134157]
[1673852732389,17.96816,24.79,24.765,62.14134157]
[1673852732592,17.76632,24.79,24.765,62.14134157]
[1673852732903,20.0,24.794,24.765,62.14134157]
[1673852733124,19.79816,24.794,24.767,20.0]
[1673852733309,19.39448,24.794,24.768,20.0]
[1673852733520,38.11,24.81,24.767,20.0]
[1673852733746,38.11,24.81,24.768,20.0]
[1673852734262,18.17,24.79,24.765,62.14134157]
[1673852734482,18.13,24.78,24.765,62.14134157]
[1673852734897,18.17,24.79,24.765,62.14134157]
[1673852735113,20.0,24.799,24.765,62.14134157]
[1673852735524,20.0,24.799,24.766,2.14836]
[1673852735850,20.0,24.799,24.765,62.14134157]
[1673852736253,20.0,24.799,24.766,20.0]
[1673852736684,18.13,24.79,24.766,20.0]
[1673852737306,20.0,24.799,24.766,20.0]
[1673852737732,20.0,24.808,24.767,20.0]
[1673852737944,20.0,24.808,24.769,20.0]
[1673852738261,20.0,24.808,24.77,20.0]
[1673852739309,20.0,24.808,24.766,60.82]
[1673852739517,20.0,24.808,24.767,20.0]
[1673852739841,20.0,24.817,24.78,18.17]
[1673852740043,20.0,24.817,24.781,22.64676]
[1673852740251,19.59824,24.827,24.781,22.64676]
[1673852740459,19.59824,24.827,24.782,20.0]
[1673852740875,18.01,24.84,24.79,18.17]
[1673852741085,18.01,24.84,24.791,20.0]
[1673852741312,18.01,24.84,24.792,20.0]
[1673852741839,18.01,24.84,24.793,20.0]
[1673852742061,18.17,24.83,24.793,20.0]
[1673852742261,18.17,24.83,24.783,22.64654]
[1673852742476,18.17,24.83,24.784,20.0]
[1673852742684,18.17,24.83,24.785,20.0]
[1673852743396,18.17,24.82,24.783,2.64654]
[1673852743817,20.0,24.836,24.783,2.64654]
[1673852743818,18.17,24.83,24.783,2.64654]
[1673852744033,18.17,24.83,24.784,20.0]
[1673852744250,18.17,24.83,24.785,22.64633]
[1673852744453,18.17,24.83,24.786,20.0]
[1673852744661,18.17,24.83,24.787,20.0]
[1673852745082,20.0,24.836,24.8,18.17]
[1673852745312,20.0,24.836,24.801,20.0]
[1673852746030,20.0,24.836,24.802,2.64452]
[1673852746451,20.0,24.836,24.801,20.0]
[1673852746877,20.0,24.836,24.802,20.0]
[1673852747080,20.0,24.836,24.803,20.0]
[1673852747293,20.0,24.843,24.811,20.0]
[1673852747624,20.0,24.843,24.812,20.0]
[1673852747819,20.0,24.85,24.813,22.64334]
[1673852748033,20.0,24.85,24.814,2.64324]
[1673852748242,20.0,24.85,24.814,22.64324]
[1673852748451,20.0,24.85,24.814,20.0]
[1673852748989,20.0,24.85,24.811,20.0]
[1673852749812,20.0,24.85,24.812,20.0]
[1673852750030,20.0,24.85,24.811,20.0]
[1673852751391,20.0,24.85,24.812,20.0]
[1673852752023,20.0,24.855,24.813,24.10530354]
[1673852752228,20.0,24.867,24.815,20.0]
[1673852752450,20.0,24.867,24.815,2.64313]
[1673852752665,20.0,24.867,24.804,20.0]
[1673852752666,18.11,24.86,24.81,18.09]
[1673852752876,18.17,24.85,24.81,21.46196354]
[1673852753083,18.17,24.85,24.804,20.0]
[1673852753290,18.17,24.85,24.786,20.0]
[1673852753291,18.17,24.83,24.786,20.0]
[1673852753517,18.17,24.83,24.786,2.64622]
[1673852754225,57.15862533,24.829,24.786,2.64622]
[1673852754437,20.0,24.828,24.78,18.17]
[1673852754646,18.11,24.82,24.77,18.17]
[1673852754877,18.11,24.82,24.771,2.64783]
[1673852755064,18.11,24.82,24.772,20.0]
[1673852755279,18.11,24.82,24.773,2.64761]
[1673852755500,57.15862533,24.819,24.77,18.17]
[1673852755825,18.11,24.82,24.771,20.0]
[1673852756011,18.17,24.81,24.76,18.0]
[1673852756223,20.0,24.809,24.76,18.0]
[1673852756649,20.0,24.809,24.762,21.46196354]
[1673852756964,20.0,24.809,24.76,18.0]
[1673852757169,56.625292,24.808,24.76,18.0]
[1673852757611,18.17,24.8,24.75,18.17]
[1673852757824,18.17,24.79,24.74,18.17]
[1673852758135,20.0,24.789,24.74,18.17]
[1673852758534,18.17,24.78,24.73,18.17]
[1673852759172,95.3619222,24.779,24.721,20.0]
[1673852759383,95.3619222,24.779,24.68,199.45678868]
[1673852759384,18.04,24.74,24.69,18.17]
[1673852759903,72.55,24.76,24.702,20.0]
[1673852759904,51.830292,24.745,24.702,20.0]
[1673852760108,18.17,24.75,24.703,2.65511]
[1673852760444,17.67,24.75,24.703,24.11707354]
[1673852760675,17.67,24.75,24.71,18.17]
[1673852760844,20.0,24.759,24.711,2.65425]
[1673852761054,20.0,24.759,24.711,24.11621354]
[1673852761265,38.49118378,24.761,24.73,18.05]
[1673852761481,38.49118378,24.761,24.731,2.65211]
[1673852761703,38.12,24.78,24.731,2.65211]
[1673852761915,18.17,24.77,24.72,18.03]
[1673852762118,20.0,24.769,24.722,20.0]
[1673852762317,20.0,24.769,24.723,20.0]
[1673852762734,20.0,24.769,24.725,20.0]
[1673852762947,20.0,24.769,24.726,20.0]
[1673852763487,20.0,24.769,24.73,18.05]
[1673852763708,20.0,24.769,24.732,20.0]
[1673852764228,20.0,24.769,24.733,20.0]
[1673852764651,20.0,24.769,24.734,2.65179]
[1673852764959,18.11,24.76,24.731,20.0]
[1673852765167,20.0,24.749,24.702,20.0]
[1673852765386,18.04,24.75,24.703,2.65511]
[1673852765571,18.11,24.76,24.71,18.17]
[1673852765784,20.0,24.769,24.712,20.0]
[1673852766016,20.0,24.769,24.713,2.65404]
[1673852766214,18.17,24.76,24.713,2.65404]
[1673852766846,18.17,24.75,24.713,20.0]
[1673852767053,20.0,24.749,24.702,20.0]
[1673852767270,20.0,24.749,24.713,16.172307]
[1673852767581,18.17,24.74,24.713,16.172307]
[1673852768005,18.04,24.73,24.713,16.172307]
[1673852768233,18.17,24.72,24.713,0.002307]
[1673852769059,18.17,24.72,24.674,2.65823]
[1673852769060,50.9725471,24.719,24.674,2.65823]
[1673852769252,18.17,24.71,24.66,18.21]
[1673852769991,22.645,24.719,24.64,140.80202732]
[1673852769992,18.17,24.7,24.65,18.05]
[1673852770190,20.0,24.708,24.67,18.17]
[1673852770407,20.0,24.708,24.673,2.65834]
[1673852770614,20.0,24.719,24.68,18.17]
[1673852770824,20.0,24.719,24.674,20.0]
[1673852771143,18.17,24.71,24.66,18.17]
[1673852771353,20.0,24.719,24.672,108.1391116]
[1673852771563,20.0,24.726,24.673,2.65834]
[1673852771774,20.0,24.726,24.68,18.17]
[1673852772024,20.0,24.726,24.682,20.0]
[1673852772194,20.0,24.726,24.683,2.65727]
[1673852772404,18.03,24.74,24.683,2.65727]
[1673852772615,20.0,24.747,24.69,18.17]
[1673852772841,20.0,24.747,24.7,18.09]
[1673852773162,20.0,24.746,24.701,20.0]
[1673852773358,49.30106776,24.746,24.701,20.0]
[1673852773570,20.0,24.745,24.702,20.0]
[1673852773888,18.17,24.73,24.691,2.6564]
[1673852774109,18.13,24.72,24.683,16.180953]
[1673852774717,20.0,24.729,24.683,16.180953]
[1673852774926,20.0,24.729,24.69,18.17]
[1673852775155,20.0,24.729,24.691,22.6564]
[1673852775342,20.0,24.729,24.692,2.6563]
[1673852775561,20.0,24.729,24.691,20.0]
[1673852775792,20.0,24.727,24.69,18.17]
[1673852776007,20.0,24.727,24.69,2.65651]
[1673852776215,18.17,24.72,24.69,2.65651]
[1673852776530,18.17,24.72,24.683,16.180953]
[1673852776741,35.56335164,24.719,24.683,16.180953]
[1673852776941,20.0,24.718,24.683,16.180953]
[1673852777150,18.13,24.71,24.683,16.180953]
[1673852778098,20.0,24.709,24.683,16.180953]
[1673852778730,18.17,24.7,24.683,16.180953]
[1673852779043,20.0,24.689,24.683,0.000953]
[1673852779469,20.0,24.689,24.631,20.0]
[1673852779673,18.04,24.68,24.631,20.0]
[1673852780094,20.0,24.679,24.653,16.224126]
[1673852780416,18.04,24.67,24.653,16.224126]
[1673852781056,20.0,24.669,24.653,16.224126]
[1673852781249,20.0,24.669,24.653,0.004126]
[1673852781250,18.11,24.66,24.653,0.004126]
[1673852781471,91.08,24.66,24.653,0.004126]
[1673852781780,38.46676112,24.659,24.653,0.004126]
[1673852781989,20.0,24.658,24.653,0.004126]
[1673852782199,20.0,24.658,24.601,20.0]
[1673852782410,52.0019323,24.658,24.61,18.12]
[1673852782735,18.17,24.64,24.611,2.66504]
[1673852782948,17.17,24.64,24.601,20.0]
[1673852783283,2.645,24.657,24.601,20.0]
[1673852783284,18.17,24.65,24.601,20.0]
[1673852783464,18.17,24.65,24.602,2.66601]
[1673852783896,20.0,24.649,24.602,2.66601]
[1673852784213,2.645,24.648,24.6,18.65334644]
[1673852784398,18.17,24.63,24.602,16.249768]
[1673852785038,20.0,24.629,24.602,16.249768]
[1673852785465,53.1506836,24.628,24.602,16.249768]
[1673852785772,20.0,24.627,24.602,16.249768]
[1673852786314,18.12,24.64,24.602,16.249768]
[1673852786720,20.0,24.659,24.602,16.249768]
[1673852786721,20.0,24.659,24.603,2.66591]
[1673852786931,20.0,24.659,24.604,20.0]
[1673852787149,20.0,24.659,24.605,2.66569]
[1673852787556,20.0,24.659,24.61,18.17]
[1673852787773,20.0,24.659,24.604,20.0]
[1673852787774,20.0,24.659,24.621,20.0]
[1673852787989,20.0,24.659,24.622,37.0]
[1673852788299,20.0,24.659,24.622,20.0]
[1673852788517,18.11,24.65,24.622,20.0]
[1673852788734,18.11,24.65,24.605,20.0]
[1673852789340,18.11,24.65,24.6,18.65334644]
[1673852789779,19.5,24.658,24.603,20.0]
[1673852790093,18.17,24.65,24.604,2.6658]
[1673852790409,18.17,24.65,24.603,20.0]
[1673852790618,8.5,24.658,24.61,18.17]
[1673852790833,20.0,24.66,24.62,18.17]
[1673852791052,18.17,24.67,24.62,18.17]
[1673852791053,18.17,24.67,24.621,20.0]
[1673852791256,18.17,24.67,24.622,40.82]
[1673852791455,18.01,24.68,24.63,18.17]
[1673852791667,18.01,24.68,24.631,20.0]
[1673852792303,18.17,24.67,24.631,20.0]
[1673852792520,18.17,24.66,24.631,20.0]
[1673852792708,18.17,24.66,24.614,20.0]
[1673852792925,72.57,24.68,24.614,20.0]
[1673852792926,18.17,24.67,24.62,18.17]
[1673852793255,18.17,24.65,24.615,2.66461]
[1673852793444,18.17,24.65,24.6,18.65334644]
[1673852793655,18.17,24.64,24.6,0.48334644]
[1673852795567,18.17,24.65,24.603,20.0]
[1673852795878,41.46196354,24.639,24.602,21.46196354]
[1673852796096,18.17,24.63,24.6,0.48334644]
[1673852796409,18.17,24.62,24.6,0.48334644]
[1673852796618,18.17,24.63,24.6,0.48334644]
[1673852797237,18.17,24.63,24.6,16.73620844]
[1673852797562,28.64035833,24.629,24.6,16.73620844]
[1673852797768,20.0,24.628,24.6,16.73620844]
[1673852798181,2.645,24.627,24.6,16.73620844]
[1673852798506,18.13,24.61,24.6,16.73620844]
[1673852798702,20.0,24.609,24.6,0.00620844]
[1673852799644,18.17,24.62,24.6,0.00620844]
[1673852800911,20.0,24.629,24.6,0.00620844]
[1673852801661,20.0,24.629,24.601,40.82]
[1673852802074,20.0,24.629,24.602,20.0]
[1673852802285,20.0,24.629,24.6,0.00620844]
[1673852802500,20.0,24.629,24.601,40.82]
[1673852802710,20.0,24.629,24.602,20.0]
[1673852803769,20.0,24.634,24.603,20.0]
[1673852803974,18.58,24.65,24.605,40.82]
[1673852804192,18.58,24.65,24.603,20.0]
[1673852804193,18.58,24.66,24.61,18.68]
[1673852804395,18.76,24.65,24.611,20.0]
[1673852804723,38.58,24.66,24.614,40.82]
[1673852804925,20.0,24.66,24.62,18.76]
[1673852805129,20.0,24.66,24.621,20.0]
[1673852805557,20.0,24.66,24.621,60.82]
[1673852805765,20.0,24.66,24.622,20.0]
[1673852805975,20.0,24.66,24.623,20.0]
[1673852807019,38.76,24.66,24.623,20.0]
[1673852807228,38.76,24.66,24.614,20.0]
[1673852807452,38.76,24.66,24.615,2.66461]
[1673852807667,38.76,24.66,24.616,20.0]
[1673852807858,38.76,24.66,24.615,2.66461]
[1673852807859,18.76,24.65,24.617,20.0]
[1673852808075,18.76,24.65,24.602,40.82]
[1673852808280,18.76,24.65,24.6,18.76620844]
[1673852808716,18.73,24.64,24.6,0.00620844]
[1673852809439,20.0,24.639,24.6,0.00620844]
[1673852811870,18.76,24.63,24.6,0.00620844]
[1673852812270,18.73,24.62,24.6,0.00620844]
[1673852812504,18.73,24.62,24.58,105.4806616]
[1673852812690,19.79691,24.639,24.59,18.58]
[1673852813861,18.76,24.63,24.581,21.66829]
[1673852814080,18.76,24.63,24.581,2.66829]
[1673852814488,18.62,24.62,24.58,105.4806616]
[1673852814909,18.62,24.62,24.581,20.0]
[1673852815119,18.62,24.62,24.581,19.0]
[1673852815340,18.62,24.62,24.58,105.4806616]
[1673852816382,20.0,24.619,24.58,105.4806616]
[1673852816597,18.76,24.6,24.58,105.4806616]
[1673852817134,29.53613443,24.599,24.58,105.4806616]
[1673852817544,18.75,24.59,24.58,105.4806616]
[1673852817971,18.76,24.61,24.58,105.4806616]
[1673852818163,18.94,24.62,24.58,105.4806616]
[1673852818373,18.58,24.6,24.58,105.4806616]
[1673852819560,18.75,24.61,24.581,20.0]
[1673852820063,18.75,24.61,24.58,105.4806616]
[1673852820269,18.58,24.59,24.579,16.251728]
[1673852820904,20.0,24.608,24.579,16.251728]
[1673852823009,20.0,24.617,24.58,20.0]
[1673852823212,18.62,24.62,24.58,20.0]
[1673852823426,18.76,24.63,24.581,20.0]
[1673852823638,18.87,24.64,24.59,18.64]
[1673852823847,20.0,24.644,24.6,18.62]
[1673852824178,20.0,24.644,24.601,20.0]
[1673852824374,20.0,24.629,24.601,20.0]
[1673852824696,20.0,24.629,24.582,20.0]
[1673852824915,18.76,24.62,24.583,2.66807]
[1673852825104,20.0,24.629,24.582,20.0]
[1673852825319,20.0,24.629,24.59,18.76]
[1673852825530,18.76,24.65,24.6,18.76]
[1673852825744,18.76,24.65,24.601,20.0]
[1673852825955,20.0,24.659,24.61,18.64]
[1673852826156,20.0,24.659,24.62,18.76]
[1673852826367,20.0,24.659,24.622,20.0]
[1673852826706,20.0,24.659,24.623,20.0]
[1673852827229,20.0,24.659,24.621,20.0]
[1673852827839,20.0,24.659,24.611,41.46196354]
[1673852828055,20.0,24.659,24.612,22.66493]
[1673852828272,20.0,24.659,24.613,22.66482]
[1673852828488,20.0,24.659,24.614,2.66471]
[1673852828682,20.0,24.659,24.613,20.0]
[1673852828895,20.0,24.659,24.611,20.0]
[1673852830487,20.0,24.659,24.612,20.0]
[1673852830694,20.0,24.659,24.613,20.0]
[1673852831100,18.76,24.63,24.582,112.776]
[1673852831308,20.0,24.629,24.583,2.66807]
[1673852831851,20.0,24.629,24.584,21.46196354]
[1673852832047,20.0,24.629,24.585,22.66786]
[1673852832467,20.0,24.629,24.586,24.12971354]
[1673852832679,20.0,24.629,24.587,22.66764]
[1673852832897,20.0,24.639,24.59,59.46]
[1673852833110,20.0,24.639,24.591,2.66721]
[1673852833426,20.0,24.639,24.594,40.82]
[1673852833625,20.0,24.639,24.595,2.66677]
[1673852834041,20.0,24.639,24.596,40.82]
[1673852834268,20.0,24.639,24.598,40.82]
[1673852834589,20.0,24.647,24.6,40.82]
[1673852834795,20.0,24.649,24.62,18.58]
[1673852835004,20.0,24.649,24.621,20.0]
[1673852835942,20.0,24.649,24.61,18.76]
[1673852836363,20.0,24.649,24.604,21.46196354]
[1673852836807,20.0,24.649,24.601,2.66612]
[1673852836989,18.76,24.64,24.595,21.46196354]
[1673852837204,18.76,24.63,24.58,18.58]
[1673852837429,20.0,24.639,24.59,18.63]
[1673852837645,20.0,24.639,24.591,2.66721]
[1673852837848,20.0,24.639,24.592,20.0]
[1673852838049,20.0,24.639,24.593,2.66699]
[1673852839106,20.0,24.639,24.592,20.0]
[1673852839648,20.0,24.639,24.59,18.63]
[1673852839844,18.76,24.63,24.581,17.5]
[1673852840055,18.76,24.63,24.581,20.16829]
[1673852840258,20.0,24.629,24.581,20.16829]
[1673852840590,20.0,24.629,24.582,2.66818]
[1673852841224,20.0,24.619,24.58,20.0]
[1673852841411,20.0,24.619,24.57,18.76]
[1673852841624,20.0,24.619,24.572,21.46196354]
[1673852841830,20.0,24.619,24.58,20.0]
[1673852842585,20.0,24.629,24.582,20.0]
[1673852842778,20.0,24.629,24.583,20.0]
[1673852843333,18.78,24.62,24.582,20.0]
[1673852843634,18.78,24.62,24.584,21.46196354]
[1673852843828,20.0,24.629,24.585,20.0]
[1673852844033,18.78,24.63,24.585,20.0]
[1673852844361,20.0,24.634,24.59,18.67]
[1673852844557,18.63,24.64,24.591,22.66721]
[1673852844772,18.63,24.64,24.592,22.6671]
[1673852844990,18.63,24.64,24.593,22.66699]
[1673852845205,118.154,24.657,24.593,22.66699]
[1673852845206,18.78,24.65,24.601,20.0]
[1673852845615,18.78,24.65,24.602,44.12797354]
[1673852845834,20.0,24.647,24.604,20.0]
[1673852846039,20.0,24.656,24.61,18.78]
[1673852846244,20.0,24.656,24.612,20.0]
[1673852846578,20.0,24.656,24.613,20.0]
[1673852846786,20.0,24.656,24.614,20.0]
[1673852846994,20.0,24.656,24.615,22.66461]
[1673852847311,20.0,24.656,24.616,22.6645]
[1673852847523,20.0,24.656,24.617,20.0]
[1673852847919,20.0,24.656,24.619,60.82]
[1673852848133,20.0,24.656,24.618,21.46196354]
[1673852848453,20.0,24.656,24.617,20.0]
[1673852848454,20.0,24.656,24.619,20.0]
[1673852848669,18.78,24.65,24.617,20.0]
[1673852848883,20.0,24.649,24.614,20.0]
[1673852849198,20.0,24.649,24.601,21.46196354]
[1673852849199,18.78,24.64,24.601,21.46196354]
[1673852849515,20.0,24.649,24.615,21.46196354]
[1673852849710,20.0,24.649,24.602,2.66601]
[1673852850347,18.78,24.64,24.603,276.26196354]
[1673852850572,18.73,24.62,24.581,20.0]
[1673852850777,18.73,24.62,24.593,21.46196354]
[1673852851181,18.78,24.63,24.594,20.0]
[1673852851613,18.78,24.63,24.595,21.46196354]
[1673852852140,20.0,24.629,24.595,21.46196354]
[1673852852771,20.0,24.629,24.584,40.82]
[1673852852772,20.0,24.629,24.596,20.0]
[1673852852977,37.08236532,24.628,24.585,21.46196354]
[1673852853176,20.0,24.619,24.585,21.46196354]
[1673852853389,20.0,24.619,24.57,18.78]
[1673852853390,20.0,24.619,24.572,40.82]
[1673852853612,20.0,24.619,24.583,20.0]
[1673852854026,20.0,24.629,24.59,18.75]
[1673852854237,20.0,24.629,24.59,21.41731]
[1673852854451,20.0,24.629,24.591,20.0]
[1673852854661,20.0,24.629,24.59,2.66731]
[1673852854860,20.0,24.629,24.585,60.82]
[1673852855080,20.0,24.629,24.585,20.0]
[1673852855289,18.78,24.62,24.577,21.46196354]
[1673852855695,20.0,24.629,24.583,21.46196354]
[1673852855909,20.0,24.629,24.591,20.0]
[1673852856133,20.0,24.634,24.592,2.6671]
[1673852856452,18.73,24.65,24.6,18.7]
[1673852856656,18.73,24.65,24.601,2.66612]
[1673852857093,18.73,24.65,24.603,40.82]
[1673852857278,18.73,24.65,24.604,20.0]
[1673852857490,18.73,24.65,24.605,20.0]
[1673852857801,20.0,24.652,24.605,20.0]
[1673852857802,20.0,24.652,24.61,18.78]
[1673852858028,20.0,24.652,24.612,20.0]
[1673852858223,9.0,24.647,24.613,22.66482]
[1673852858435,20.0,24.652,24.62,18.78]
[1673852858651,20.0,24.652,24.614,2.66471]
[1673852858871,20.0,24.652,24.618,21.46196354]
[1673852859084,20.0,24.652,24.619,20.0]
[1673852859481,20.0,24.652,24.619,41.46196354]
[1673852859908,20.0,24.652,24.619,20.0]
[1673852860117,20.0,24.652,24.619,41.46196354]
[1673852860345,20.0,24.652,24.62,17.0]
[1673852860546,20.0,24.652,24.619,20.0]
[1673852860741,20.0,24.652,24.616,21.46196354]
[1673852860966,20.0,24.652,24.617,20.0]
[1673852861180,18.78,24.64,24.617,20.0]
[1673852861500,20.0,24.639,24.595,20.0]
[1673852861827,20.0,24.639,24.595,22.66677]
[1673852862035,20.0,24.639,24.6,18.78]
[1673852862251,20.0,24.639,24.601,2.66612]
[1673852862466,20.0,24.639,24.601,24.12808354]
[1673852862650,20.0,24.639,24.601,2.66612]
[1673852862854,20.0,24.639,24.603,40.82]
[1673852863071,18.78,24.63,24.58,18.78]
[1673852863294,34.13569866,24.638,24.58,18.78]
[1673852863295,18.64,24.62,24.58,2.6684]
[1673852863721,18.64,24.62,24.581,20.0]
[1673852863925,18.64,24.62,24.58,2.6684]
[1673852864333,18.64,24.62,24.619,41.133594]
[1673852864550,20.0,24.619,24.58,2.6684]
[1673852864985,20.0,24.619,24.571,20.0]
[1673852865292,18.78,24.61,24.561,20.0]
[1673852865903,21.46196354,24.609,24.561,20.0]
[1673852866109,18.78,24.59,24.579,0.001158]
[1673852866773,20.0,24.589,24.579,0.001158]
[1673852867075,20.0,24.589,24.543,2.67242]
[1673852867292,18.78,24.58,24.543,2.67242]
[1673852867476,18.78,24.58,24.53,18.67]
[1673852867689,18.78,24.58,24.533,21.46196354]
[1673852867899,20.0,24.589,24.541,20.0]
[1673852868118,20.0,24.589,24.54,18.78]